Cogmind - Beta 14 @@@ ROGUE MODE // 2024.10.14 @ 10:41:03 Player: THN-L0C Result: Destroyed by 5I-JRN(R) with Subdweller Machine Gun Performance ------------- Evolutions (0) 0 Regions Visited (2) 400 Robots Destroyed (27) 135 Value Destroyed (507) 507 Prototype IDs (2) 40 Alien Tech Used (0) 0 Bonus (0) 0 TOTAL SCORE: 1082 Bonus ------- None Cogmind --------- Core Integrity 0/250 Matter 227/300 Energy 100/100 System Corruption 0% Temperature Cool (0) Movement Core (800) Ox15 Location -10/Subcaves Parts ------- > --- POWER (1) -------- (None) > --- PROPULSION (2) --- (None) > --- UTILITY (2) ------ High-capacity Storage Unit Hardened Light Armor Plating > --- WEAPON (2) ------- Light Assault Rifle > --- INVENTORY (20) --- Light Treads Light Treads Improved Treads Huge Storage Unit High-capacity Matter Pod (162) High-capacity Matter Pod (0) High-capacity Matter Pod (0) Improved Terrain Scanner Seismic Detector Hammer Peak State ------------ > --- POWER ------------ Ion Engine > --- PROPULSION ------- Light Treads Light Treads > --- UTILITY ---------- Small Storage Unit Seismic Detector > --- WEAPON ----------- Small Laser Assault Rifle > --- INVENTORY -------- Light Ion Engine Improved Treads Huge Storage Unit Large Matter Pod Improved Terrain Scanner Hardened Light Armor Plating [Rating: 8] Favorites ----------- Power Light Ion Engine Engine Light Ion Engine Propulsion Light Treads Treads Light Treads Utility Targeting Computer Device Seismic Detector Storage Small Storage Unit Processor Targeting Computer Protection Hardened Light Armor Plating Weapon Small Laser Energy Gun Small Laser Ballistic Gun Assault Rifle Launcher Grenade Launcher Build | -11 -10 -10 ------- Run | Yrd Mat Sub Slots Evolved . | . . . Power . | . . . Propulsion . | . . . Utility . | . . . Weapon . | . . . Parts Attached 21 | 8 10 3 Power 3 | 2 1 . Engine 3 | 2 1 . Core . | . . . Reactor . | . . . Propulsion 4 | 2 2 . Treads 4 | 2 2 . Leg . | . . . Wheel . | . . . Hover . | . . . Flight . | . . . Utility 7 | 2 3 2 Device 2 | 1 . 1 Storage 3 | 1 2 . Processor 1 | . 1 . Hackware . | . . . Protection 1 | . . 1 Artifact . | . . . Weapon 7 | 2 4 1 Energy Gun 3 | 1 2 . Energy Cannon . | . . . Ballistic Gun 3 | 1 2 . Ballistic Cannon . | . . . Launcher 1 | . . 1 Special Weapon . | . . . Impact Weapon . | . . . Slashing Weapon . | . . . Piercing Weapon . | . . . Special Melee Weapon . | . . . Unidentified Prototypes . | . . . Parts Lost 6 | . 2 4 Power 1 | . . 1 Propulsion 2 | . . 2 Utility . | . . . Weapon 3 | . 2 1 Highest Loss Streak 4 | . 1 4 To Critical Strikes . | . . . Average Slot Usage (%) 94 | . 95 80 Engine 13 | . 14 10 Treads 27 | . 28 25 Device 3 | . 2 12 Storage 14 | . 14 14 Processor 10 | . 11 . Energy Gun 11 | . 12 . Ballistic Gun 10 | . 10 14 Peak Build Rating 8 | 7 8 7 Average Rating 7 | 5 7 6 On Entrance 4 | . 7 7 Naked Turns . | . . . Heaviest Build 45 | 14 45 45 Greatest Support 40 | 40 40 40 Greatest Overweight (x) 1 | . 1 1 Average Overweight (x) . | . . 1 Largest Inventory Capacity 20 | 8 20 20 Average Capacity 12 | 7 12 20 Most Carried 12 | 2 12 12 Average Carried 8 | . 8 10 Final Capacity 20 | 8 20 20 Final Carried 12 | 2 12 10 Class Distribution -------------------- 94% | Mutant 5% | Scavenger-Mutant Dominant Class ---------------- Mutant | -10/Materials Scavenger-Mutant | -10/Subcaves Resources | -11 -10 -10 ----------- Run | Yrd Mat Sub Matter Collected 818 | 288 530 . Remotely . | . . . Salvage Created 853 | 135 676 42 Parts 57 | 8 48 1 Haulers Intercepted 2 | . 2 . Recyclers Shooed . | . . . Parts Field Recycled . | . . . Retrieved Matter . | . . . Parts Self-Destructed . | . . . Prevented . | . . . Kills | -11 -10 -10 ------- Run | Yrd Mat Sub Combat Hostiles Destroyed 15 | . 14 1 Guns 14 | . 14 . AOE 1 | . . 1 Classes Destroyed 9 | 2 6 1 Worker 2 | . 2 . Builder 1 | . 1 . Tunneler 3 | 3 . . Hauler 2 | . 2 . Recycler 1 | 1 . . Watcher 3 | . 3 . Swarmer 6 | . 6 . Grunt 8 | . 8 . Subdweller 1 | . . 1 Best Kill Streak 4 | 4 3 1 Combat Bots Only 3 | . 3 1 Max Kills in Single Turn 1 | 1 1 1 Gunslinging . | . . . Exploded 1 | . . 1 Melee . | . . . Uniques/NPCs Destroyed . | . . . Combat | -11 -10 -10 -------- Run | Yrd Mat Sub Hostile Shots Fired 112 | . 91 21 Missed 29 | . 25 4 Damage Taken 1120 | . 716 404 Core 256 | . 154 102 Absorbed by Shields . | . . . Core Remaining (%) 100 | 100 . . Volleys Fired 96 | 6 81 9 Largest 2 | 2 2 2 Hottest 60 | 60 60 50 Shots Fired 164 | 12 139 13 Gun 160 | 12 139 9 Cannon . | . . . Launcher 4 | . . 4 Special . | . . . Kinetic 89 | 6 74 9 Thermal 71 | 6 65 . Explosive 4 | . . 4 Electromagnetic . | . . . Robot Hit Streak 24 | 2 24 6 Robot Miss Streak 4 | 1 4 1 Penetration Max . | . . . Secondary Targets 2 | . 2 . Max Gunslinging Chain 1 | . 1 . Shots Hit Robots 117 | 7 99 11 Core Hits 49 | 5 38 6 Critical Kills . | . . . Critical Parts Destroyed . | . . . Critical Strikes . | . . . Melee Attacks . | . . . Impact . | . . . Slashing . | . . . Piercing . | . . . Sneak Attacks . | . . . Combat Hostiles . | . . . Follow-up Attacks . | . . . Damage Inflicted 1451 | 81 1111 259 Guns 1257 | 78 1111 68 Cannons . | . . . Explosions 191 | . . 191 Melee . | . . . Ramming 3 | 3 . . Kinetic 749 | 42 639 68 Thermal 508 | 36 472 . Explosive 191 | . . 191 Electromagnetic . | . . . Impact . | . . . Slashing . | . . . Piercing . | . . . Highest Corruption . | . . . Average Corruption . | . . . Corruption Purged . | . . . Corruption Blocked . | . . . Overload Shots . | . . . Overflow Damage . | . . . Projectiles . | . . . Explosions . | . . . Melee . | . . . Knockbacks . | . . . Impact . | . . . Kinetic . | . . . Secondary . | . . . Self-Inflicted Damage . | . . . Shots . | . . . Rammed 1 | 1 . . Targets Rammed 1 | 1 . . Kicked . | . . . Crushed . | . . . Highest Temperature 75 | . 75 . Average Temperature 35 | . 35 . Received Heat Transfer 408 | . 327 81 Siege Activations . | . . . Robots Corrupted . | . . . Combat Hostiles . | . . . Parts Fried . | . . . Impact Corruptions . | . . . Robots Melted . | . . . Combat Hostiles . | . . . Parts Melted 2 | . 2 . Heat Transferred 1150 | 75 1075 . Parts Sabotaged . | . . . Parts Stolen . | . . . Parts Stripped . | . . . Power Chain Reactions . | . . . Alert | -11 -10 -10 ------- Run | Yrd Mat Sub Peak Influence 177 | 20 177 . Initial 13 | . 13 . Average 40 | 7 42 . Maximum Alert Level . | . . . Low Security (%) 100 | 100 100 . Level 1 . | . . . Level 2 . | . . . Level 3 . | . . . Level 4 . | . . . Level 5 . | . . . High Security . | . . . Max Security . | . . . Squads Dispatched 1 | . 1 . Investigation . | . . . Extermination . | . . . Reinforcement 1 | . 1 . Assault . | . . . Garrison . | . . . Intercept . | . . . Searches Triggered . | . . . Construction Impeded . | . . . Haulers Reinforced . | . . . Active Scanning Responses . | . . . Cargo Convoy Interrupts . | . . . Stealth | -11 -10 -10 --------- Run | Yrd Mat Sub Distress Signals 3 | . 3 . Communications Jammed . | . . . Distress Signals . | . . . Times Spotted 26 | . 23 3 Peak Tracking Total 4 | . 4 3 Tactical Retreats 3 | . 3 . Traps | -11 -10 -10 ------- Run | Yrd Mat Sub Traps Triggered 2 | . 2 . Indirectly . | . . . Trap Hack Attempts . | . . . Triggered . | . . . Disarmed . | . . . Reprogrammed . | . . . Reused . | . . . Traps Extracted . | . . . Installed . | . . . Triggered . | . . . Machines | -11 -10 -10 ---------- Run | Yrd Mat Sub Machines Disabled 1 | . 1 . Max in Single Turn 1 | . 1 . Machines Repaired . | . . . Machines Dismantled . | . . . Machines Sabotaged . | . . . Overloaded Fab Kills . | . . . Hacking | -11 -10 -10 --------- Run | Yrd Mat Sub Machines Accessed 8 | . 8 . Terminals 7 | . 7 . Fabricators . | . . . Repair Stations . | . . . Recycling Units 1 | . 1 . Scanalyzers . | . . . Garrison Access . | . . . Total Hacks 20 | . 20 . Successful 11 | . 11 . Failed 9 | . 9 . Catastrophic 2 | . 2 . Database Lockouts . | . . . Manual 15 | . 15 . Terminals 18 | . 18 . Fabricators . | . . . Repair Stations . | . . . Recycling Units 2 | . 2 . Scanalyzers . | . . . Garrison Access . | . . . Terminal Hacks 4 | . 4 . Robot Analysis 2 | . 2 . Prototype ID Bank 1 | . 1 . Unreport Threat 1 | . 1 . Fabricator Hacks . | . . . Repair Station Hacks . | . . . Recycling Unit Hacks 1 | . 1 . Retrieve Components 1 | . 1 . Scanalyzer . | . . . Garrison Access Hacks . | . . . Unauthorized Hacks 6 | . 6 . Terminals 6 | . 6 . Botnet 1 | . 1 . Skim 5 | . 5 . Fabricators . | . . . Repair Stations . | . . . Recycling Units . | . . . Scanalyzers . | . . . Garrison Access . | . . . Data Cores Recovered . | . . . Used . | . . . Hacking Detections 6 | . 6 . Full Trace Events . | . . . Feedback Events . | . . . Feedback Blocked . | . . . Robot Schematics Acquired . | . . . Robots Built . | . . . Authchips . | . . . Time . | . . . Total Robot Build Rating . | . . . Part Schematics Acquired . | . . . Parts Built . | . . . Authchips . | . . . Time . | . . . Total Part Build Rating . | . . . Parts Repaired . | . . . Time . | . . . Parts Recycled . | . . . Recycled Matter . | . . . Retrieved Matter . | . . . Retrieved Components 2 | . 2 . Parts Scanalyzed . | . . . Part Schematics Acquired . | . . . Parts Damaged . | . . . Bothacking | -11 -10 -10 ------------ Run | Yrd Mat Sub Used RIF Installer . | . . . Robots Hacked . | . . . Non-combat . | . . . Combat . | . . . Robot Hacks Applied . | . . . Relay Couplers Released . | . . . Fabnet Peak Effective % . | . . . Robots Rewired . | . . . Allies Hacked . | . . . Hacks Repelled . | . . . Allies | -11 -10 -10 -------- Run | Yrd Mat Sub Total Allies . | . . . Largest Group . | . . . Highest-Rated Group . | . . . Highest-Rated Ally . | . . . Total Orders . | . . . Ally Attacks . | . . . Total Damage . | . . . Kills . | . . . Allies Corrupted . | . . . Allies Melted . | . . . Intel | -11 -10 -10 ------- Run | Yrd Mat Sub Robot Analysis Total 2 | . 2 . Derelict Logs Recovered 1 | . . 1 Drone Launches . | . . . Drone Recoveries . | . . . Exploration | -11 -10 -10 ------------- Run | Yrd Mat Sub Turns Passed 1901 | 115 1658 128 Spaces Moved 760 | 55 662 43 Core 5 | 5 . . Treads 755 | 50 662 43 Legs . | . . . Wheels . | . . . Hover . | . . . Flight . | . . . Fastest Speed 50 | 50 160 240 Average Speed 178 | 150 177 240 Slowest Speed 240 | 160 240 240 Overloaded Moves . | . . . Propulsion Burnouts . | . . . Robots Hopped . | . . . Cave-ins Triggered . | . . . Exploration Rate (%) 37 | 5 98 8 Regions Visited 2 Branch Regions 1 Pre-discovered Areas . | . . . Known Exits Taken 1 | . 1 . Unknown Exits Taken 1 | 1 . . Scrap Searched . | . . . Spaces Dug . | . . . Terrain Destroyed 21 | . . 21 Melee . | . . . Projectile . | . . . AOE 21 | . . 21 Terrain Rammed . | . . . Walls Destroyed . | . . . Machines Disabled . | . . . Actions | -11 -10 -10 --------- Run | Yrd Mat Sub Total 1139 | 71 1013 55 Wait 248 | 1 247 . Move 758 | 54 661 43 Hop . | . . . Pick Up 11 | 1 10 . Fast Attach 11 | 7 4 . Attach 1 | . . 1 Detach . | . . . Swap 9 | 1 6 2 Drop 4 | . 4 . Fire 96 | 6 81 9 Melee . | . . . Ram . | . . . Kick . | . . . Crush 1 | 1 . . Escape Stasis . | . . . Rewire . | . . . Trap . | . . . Miscellaneous . | . . . Route ------- -11/Scrapyard -10/Materials (discovered 5 exits: [*Mat x3] / *Min / *Sub) -10/Subcaves (discovered 2 exits: Mat x2) History --------- Turn | Location | Event 9 | -11/Scrapyard | Discovered new exit (range 15) 116 | -11/Scrapyard | Entered Materials 307 | -10/Materials | Build established: Mutant 367 | -10/Materials | Discovered new exit (range 9) 456 | -10/Materials | Discovered new exit (range 3) 782 | -10/Materials | Discovered new exit (range 16) 1042 | -10/Materials | Discovered new exit (range 8) 1132 | -10/Materials | Core integrity fell below 50% 1143 | -10/Materials | Identified exit to Mines 1204 | -10/Materials | Loaded intel: 8 terminal locations 1293 | -10/Materials | Learned 4 Subcaves zone layouts 1339 | -10/Materials | Identified exit to Subcaves 1365 | -10/Materials | Learned 4 Subcaves zone layouts 1400 | -10/Materials | Learned 2 Storage zone layouts 1774 | -10/Materials | Entered Subcaves 1775 | -10/Subcaves | Identified exit to Materials 1819 | -10/Subcaves | Learned 2 Materials zone layouts 1900 | -10/Subcaves | Core integrity fell below 20% 1902 | -10/Subcaves | Destroyed by 5I-JRN(R) with Subdweller Machine Gun Last Messages --------------- 01690_ Acquired 10 matter. 01767_ T-07 Excavator is excavating. LOCATION=SUBCAVES AMBIENT_HEAT=-10 GOAL=ESCAPE Loading 2 Materials entrances... Loading 8 Subcaves zones... 01779_ Discarded Targeting Computer. 01797_ Q4-ZNO(u) builds Twisted Machinery. 01819_ Acquired derelict log, extracted data. Data stored: Materials zone layouts (x2). 01863_ AQ-32L(R): "WEHOME!" 01879_ Lgt. Ion Engine destroyed. 01882_ OV-35V(O) collects matter. 01885_ A thin wall crumbles away, revealing a door. 01885_ AQ-32L(R) destroyed. 01886_ OV-35V(O) collects matter. 01892_ Grenade Launcher destroyed. 01893_ Lgt. Treads destroyed. 01897_ OV-35V(O) collects matter. Map ----- +----------------------------------------------------+ | ?????????????????????????????????????????????????? | | ?????????????????????????????????????????????????? | | ?????????????????????????????????????????????????? | | ?????????????????????????????????????????????????? | | ????????????????????????????????????## ##"" ## | | ?????????????????????????????????????## ####"" # | | ??????????????????????????????????????### ## " " | | ??????????????????????????????????????###" "" " | | ??????????????????????????????????????# " " " | | ??????????????????????????????????????# ##"" | | ??????????????????????????????????????## #### | | ???????????????????????????????????????### #??# | | ????????????????????????????????????????# #??# | | ????????????????????????????????????????## #??## | | ????????????????????????????????????????## ##???# | | ???????????????????????????????????????## ""#???? | | ???????????????????????????????????????# "##???? | | ???????????????????????????????????????# "##????? | | ???###?????????????????????"#??????????## #????? | | ??## ######?????????????### #####??????## ##????? | | ?## # ??????#??????# # #??????#"" #????? | | ## ### ????# #??????#""" #????? | | ## #?## ????##### "#????? | | # # O # #????## ##????? | | ##### ##??## ##????? | | ##???## R @ #?## ## #????? | | ########????# R #### #????? | | ## # ##????# # & ##?## ###### | | ????# &% #??## # # | | ????????????? [ #?### # | | ???????????? #### # ##?# # | | ???????????? ?????# ##### # ##??# ## | | ???????????? ??????# % ?????### ##???# # | | ?????????????????? ???????# #????# | | ????????????????% ##???????###????# ## ### | | ??????????????? ????????????????# ?####?## | | ??????????????? % #????????????????# ???????? | | ????????????????# #????????????????? ???????? | | ????????????????# ????????????????? ???????? | | ?????????????????? ?????????????????## # ???????? | | ??????????????????????????????????????##? ???????? | | ????????????????????????????????????????? ???????? | | ?????????????????????????????????????????????????? | | ?????????????????????????????????????????????????? | | ?????????????????????????????????????????????????? | | ?????????????????????????????????????????????????? | | ?????????????????????????????????????????????????? | | ?????????????????????????????????????????????????? | | ?????????????????????????????????????????????????? | | ?????????????????????????????????????????????????? | +----------------------------------------------------+ Best States ------------- Heat Dissipation 25 Energy Generation 10 Energy Capacity 250 Matter Stores 300 Matter Capacity 300 Sight Range 16 Terrain Scan Density 10 Armor Coverage 150 Evasion (%) 40 Targeting Accuracy 5 Recoil Reduction 2 Item Schematics ----------------- None Robot Schematics ------------------ None Fabricated ------------ Nothing Alien Tech Used ----------------- None Achievements -------------- None Challenges ------------ None Game ------ Seed SystemClaymoresPurifier Manual? 0 Play Time 00:07:54 Cumulative 346.2 hours Start 2024.10.14 @ 10:33:56 End 2024.10.14 @ 10:41:03 Sessions 1 Manual Loads 0 Difficulty Rogue Special Mode None Game No. 263 Rogue 263 Adventurer 0 Explorer 0 Win Type - Total 3 Types 1/0/1/1/0/0/0/0/0 Lore% 75 Gallery% 80 Achievement% 64 Wizard Run 0 Options --------- Layout 2 ASCII 0 Keyboard 1 Movement Vi Keybinds 0 Fullscreen 2 Font 32/SmallcapsGlow Map View 77x44 Zoom Use 0% Tactical HUD 1 Map Filters NONE Filters NONE Steam 1 RUN: 609469f6-988a-4748-b993-0ee88b4e7cbf